bitfinex/quotes_BTCUSD_20220120
["timestamp","ask_amount","ask_price","bid_price","bid_amount"]
[1642691178559,0.17058579,43242.0,43241.0,0.002]
[1642691179007,0.057851,43247.0,43241.0,0.002]
[1642691179505,0.21931982,43245.0,43241.0,0.002]
[1642691179707,0.00029051,43246.0,43241.0,0.002]
[1642691179908,0.15502,43245.0,43240.0,0.32215987]
[1642691180107,0.00029051,43246.0,43241.0,0.14855]
[1642691180708,0.23006876,43248.0,43241.0,0.14855]
[1642691180912,0.0002905,43246.0,43241.0,0.14855]
[1642691181109,0.23006876,43248.0,43241.0,0.89855]
[1642691181309,7.05051741,43250.0,43244.0,0.057841]
[1642691181514,7.05051741,43250.0,43246.0,0.173505]
[1642691181712,6.58783141,43250.0,43247.0,0.14853]
[1642691181910,6.12514941,43250.0,43247.0,0.14853]
[1642691182108,5.19982492,43250.0,43247.0,0.14853]
[1642691182311,4.73714192,43250.0,43247.0,0.14853]
[1642691182549,3.8117995,43250.0,43247.0,0.14853]
[1642691182750,3.59802646,43250.0,43247.0,0.14853]
[1642691182953,3.13536346,43250.0,43247.0,0.206365]
[1642691183155,3.13536346,43250.0,43247.0,0.2642]
[1642691183352,2.67267846,43250.0,43247.0,0.2642]
[1642691184350,2.67267846,43250.0,43247.0,0.2682]
[1642691184749,2.85610322,43250.0,43247.0,0.2682]
[1642691184951,2.67267846,43250.0,43247.0,0.2682]
[1642691185449,2.67267846,43250.0,43247.0,0.2642]
[1642691185649,2.67267846,43250.0,43247.0,0.25850737]
[1642691186049,0.19217626,43249.0,43247.0,0.25850737]
[1642691186316,0.19217626,43249.0,43247.0,0.26150737]
[1642691186712,0.19217626,43249.0,43247.0,0.26210737]
[1642691187312,2.73081255,43250.0,43247.0,0.26210737]
[1642691187511,2.73081255,43250.0,43247.0,0.25910737]
[1642691187711,2.67416755,43250.0,43247.0,0.25910737]
[1642691187910,2.67416755,43250.0,43247.0,0.14913]
[1642691188111,2.67387846,43250.0,43247.0,0.14913]
[1642691188711,0.01208429,43249.0,43247.0,0.14913]
[1642691189313,0.75,43248.0,43247.0,0.14913]
[1642691189515,0.01208429,43249.0,43247.0,0.14913]
[1642691189815,0.01208429,43249.0,43248.0,0.36723394]
[1642691190057,2.67416755,43250.0,43247.0,0.14913]
[1642691190058,2.21147755,43250.0,43247.0,0.14913]
[1642691190262,2.21147755,43250.0,43247.0,0.15013]
[1642691190455,2.31118846,43250.0,43248.0,0.13723394]
[1642691190657,1.84849846,43250.0,43247.0,0.1493237]
[1642691190856,1.84849846,43250.0,43247.0,0.2071577]
[1642691191256,1.84849846,43250.0,43247.0,0.26499367]
[1642691191257,1.38579246,43250.0,43247.0,0.26499367]
[1642691191460,1.38579246,43250.0,43247.0,0.26399367]
[1642691191858,0.051,43252.0,43249.0,0.9]
[1642691192062,0.051,43252.0,43250.0,0.376362]
[1642691192259,0.00246449,43255.0,43250.0,0.524882]
[1642691192459,0.00246449,43255.0,43252.0,0.05782541]
[1642691193258,0.00246449,43255.0,43252.0,0.48313151]
[1642691193558,0.00086449,43257.0,43253.0,0.35]
[1642691193810,0.00086449,43257.0,43254.0,0.376362]
[1642691194014,0.00012033,43255.0,43254.0,0.434184]
[1642691194407,0.00012033,43255.0,43254.0,0.057822]
[1642691195806,0.00012033,43255.0,43254.0,1.13728296]
[1642691196008,0.00012033,43255.0,43254.0,0.957822]
[1642691196207,0.00012033,43255.0,43254.0,0.061822]
[1642691196612,0.00012033,43255.0,43254.0,0.711822]
[1642691197012,0.00012033,43255.0,43254.0,0.061822]
[1642691197652,0.00012033,43255.0,43254.0,0.057822]
[1642691198254,0.00012033,43255.0,43254.0,1.060822]
[1642691199052,0.02325033,43255.0,43254.0,1.060822]
[1642691199452,0.02325033,43255.0,43254.0,1.057822]
[1642691200256,0.02325033,43255.0,43254.0,0.561822]
[1642691200659,0.02325033,43255.0,43254.0,0.004]
[1642691201506,0.02325033,43255.0,43252.0,0.37980341]
[1642691201709,0.09169338,43262.0,43254.0,0.38]
[1642691201915,0.09169338,43262.0,43255.0,0.05782975]
[1642691202107,0.09169338,43262.0,43257.0,0.11563808]
[1642691202108,6.876e-05,43259.0,43257.0,0.11563808]
[1642691202314,6.876e-05,43259.0,43258.0,0.37719998]
[1642691202512,0.00725844,43268.0,43259.0,0.376362]
[1642691202709,0.00725844,43268.0,43258.0,0.14849]
[1642691202907,0.0023272,43268.0,43258.0,0.14849]
[1642691203312,6.876e-05,43267.0,43260.0,0.115651]
[1642691204112,6.876e-05,43267.0,43259.0,6.876e-05]
[1642691204113,0.16050028,43263.0,43259.0,6.876e-05]
[1642691204313,0.05446,43262.0,43259.0,6.876e-05]
[1642691205053,0.0999,43260.0,43259.0,6.876e-05]
[1642691205250,0.0999,43260.0,43257.0,0.00010314]
[1642691205450,0.057839,43259.0,43254.0,0.00015471]
[1642691205952,0.057839,43259.0,43253.0,0.0001719]
[1642691206151,0.05812529,43259.0,43253.0,0.0001719]
[1642691206352,0.05812529,43259.0,43253.0,0.37737188]
[1642691206557,0.057839,43256.0,43253.0,0.37737188]
[1642691206751,0.00028629,43259.0,43254.0,0.05798871]
[1642691207154,0.00028629,43259.0,43255.0,0.00013752]
[1642691207353,0.00028629,43259.0,43256.0,0.115659]
[1642691207752,0.00028629,43259.0,43257.0,0.00010314]
[1642691208154,0.00028629,43259.0,43257.0,0.05793214]
[1642691208353,0.057832,43261.0,43257.0,0.05793214]
[1642691208552,0.0002863,43260.0,43258.0,8.595e-05]
[1642691209204,0.0002863,43260.0,43257.0,0.00010314]
[1642691209604,0.057832,43261.0,43257.0,0.00010314]
[1642691209808,0.05811831,43261.0,43257.0,0.00010314]
[1642691210107,0.05811831,43261.0,43257.0,0.05793214]
[1642691210306,0.00028631,43261.0,43257.0,0.43513212]
[1642691210507,0.00028631,43261.0,43258.0,8.595e-05]
[1642691210704,0.057828,43264.0,43258.0,8.595e-05]
[1642691210903,0.00028631,43261.0,43258.0,8.595e-05]
[1642691211105,0.00028631,43261.0,43258.0,0.05791095]
[1642691211504,0.00028631,43261.0,43259.0,6.876e-05]
[1642691211706,0.01208097,43260.0,43259.0,6.876e-05]
[1642691212206,0.01208097,43260.0,43259.0,0.16349092]
[1642691212476,8.097e-05,43260.0,43259.0,1.83021195]
[1642691212670,0.00028631,43262.0,43260.0,0.8]
[1642691212875,0.00028631,43262.0,43259.0,1.83021195]
[1642691212876,0.00028631,43262.0,43261.0,1.9978408]
[1642691213075,0.00028631,43262.0,43261.0,1.626362]
[1642691213272,6.876e-05,43267.0,43262.0,0.057816]
[1642691213474,6.876e-05,43267.0,43263.0,0.05781723]
[1642691213673,6.876e-05,43267.0,43262.0,0.057816]
[1642691213872,6.876e-05,43267.0,43261.0,0.115632]
[1642691214073,6.876e-05,43267.0,43264.0,0.5]
[1642691214273,6.876e-05,43267.0,43264.0,0.557827]
[1642691214674,0.20313849,43265.0,43264.0,0.5]
[1642691214876,0.21469849,43265.0,43264.0,0.5]
[1642691215082,0.00028633,43266.0,43265.0,0.95]
[1642691215275,6.876e-05,43267.0,43266.0,0.3]
[1642691215474,0.003,43271.0,43267.0,0.7]
[1642691215676,0.003,43271.0,43267.0,1.0714788]
[1642691215878,0.1009,43273.0,43268.0,0.0463]
[1642691216075,0.00237834,43270.0,43269.0,1.15]
[1642691216305,0.0001,43273.0,43270.0,0.45]
[1642691216504,0.0001,43273.0,43270.0,0.15]
[1642691216708,0.0001,43273.0,43270.0,0.323403]
[1642691216907,0.00029169,43274.0,43270.0,1.281206]
[1642691217107,0.00029169,43274.0,43272.0,0.5]
[1642691217311,0.00554134,43280.0,43274.0,1.25]
[1642691217510,0.001,43286.0,43281.0,0.18438924]
[1642691217711,0.3623,43302.0,43286.0,0.115571]
[1642691217712,0.009258,43289.0,43286.0,0.115571]
[1642691217913,0.8891347,43307.0,43289.0,0.38123595]
[1642691218113,2.69290259,43328.0,43291.0,1.25]
[1642691218309,0.12790514,43333.0,43297.0,0.00129529]
[1642691218510,0.00060166,43306.0,43303.0,0.00126287]
[1642691218708,0.001,43314.0,43303.0,0.01695287]
[1642691219108,0.0999,43305.0,43296.0,0.3714788]
[1642691219310,0.38716577,43291.0,43286.0,0.41189056]
[1642691219610,0.38716577,43291.0,43284.0,0.38]
[1642691219611,0.38716577,43291.0,43290.0,0.00124564]
[1642691220055,0.19059836,43291.0,43290.0,0.05152068]
[1642691220453,0.19059836,43291.0,43290.0,1.62299948]
[1642691220652,0.18987836,43291.0,43290.0,2.12299948]
[1642691220852,0.18987836,43291.0,43290.0,1.75152068]
[1642691221653,0.20195128,43291.0,43290.0,1.75152068]
[1642691222052,0.18987836,43291.0,43290.0,1.75152068]
[1642691222455,0.18987836,43291.0,43290.0,1.75252068]
[1642691222655,0.09773555,43295.0,43291.0,1.0]
[1642691222860,0.09753555,43295.0,43291.0,1.057782]
[1642691223055,0.09753555,43295.0,43292.0,0.00024066]
[1642691223056,0.00025721,43293.0,43292.0,0.00024066]
[1642691223457,0.00025721,43293.0,43292.0,1.88855821]
[1642691223711,0.09753555,43295.0,43293.0,1.56975659]
[1642691224104,0.09753555,43295.0,43294.0,0.05020628]
[1642691226007,0.09753555,43295.0,43294.0,0.03815364]
[1642691227307,0.59753555,43295.0,43294.0,0.03815364]
[1642691228357,0.59753555,43295.0,43294.0,0.43815364]
[1642691228555,0.64753555,43295.0,43294.0,0.03815364]
[1642691228757,0.59753555,43295.0,43294.0,0.03815364]
[1642691228958,0.49547455,43295.0,43290.0,2.75]
[1642691230158,0.49572938,43295.0,43290.0,2.75]
[1642691230356,0.76130738,43295.0,43290.0,2.25]
[1642691230761,0.61130738,43295.0,43291.0,0.42617714]
[1642691230959,0.057788,43294.0,43291.0,0.42617714]
[1642691231209,0.057788,43294.0,43292.0,0.0006]
[1642691231610,0.49572938,43295.0,43292.0,0.0006]
[1642691231808,0.49572938,43295.0,43293.0,0.1864206]
[1642691232209,0.01207214,43294.0,43291.0,0.46728936]
[1642691232407,0.01207214,43294.0,43293.0,1.22204644]
[1642691232408,0.00707214,43294.0,43293.0,1.22204644]
[1642691232609,0.49547455,43295.0,43293.0,1.22204644]
[1642691233010,0.49547455,43295.0,43293.0,0.03915364]
[1642691233610,0.49547455,43295.0,43293.0,0.03815364]
[1642691234010,0.49547455,43295.0,43293.0,0.46562746]
[1642691234214,0.49547455,43295.0,43294.0,1.5250245]
[1642691234611,0.49547455,43295.0,43294.0,1.33391994]
[1642691235456,0.49547455,43295.0,43294.0,1.39169477]
[1642691235853,0.49547455,43295.0,43294.0,0.28419477]
[1642691236058,0.49547455,43295.0,43294.0,0.05027483]
[1642691236356,0.59537455,43295.0,43294.0,0.002]
[1642691236555,0.71095055,43295.0,43294.0,0.002]
[1642691237254,0.65316155,43295.0,43294.0,0.002]
[1642691237656,0.65316155,43295.0,43293.0,0.03815364]
[1642691237854,0.65316155,43295.0,43290.0,2.25]
[1642691238258,0.65316155,43295.0,43290.0,1.0]
[1642691238712,0.88882791,43295.0,43290.0,0.95]
[1642691239510,0.88882791,43295.0,43293.0,0.03815364]
[1642691239812,0.05,43294.0,43293.0,0.03815364]
[1642691240010,0.05,43294.0,43290.0,0.93815364]
[1642691240213,0.65341638,43295.0,43291.0,0.14838]
[1642691240411,0.006,43294.0,43291.0,0.14838]
[1642691240811,0.51811855,43295.0,43291.0,1.39838]
[1642691241011,0.46058638,43295.0,43291.0,1.45616329]
[1642691241217,0.46058638,43295.0,43292.0,0.60357457]
[1642691241711,0.46058638,43295.0,43294.0,0.16663092]
[1642691241914,0.46033155,43295.0,43291.0,0.20742017]
[1642691242115,0.46033155,43295.0,43291.0,0.26394629]
[1642691242312,0.69033155,43295.0,43291.0,0.26394629]
[1642691242570,0.69033155,43295.0,43291.0,0.27194629]
[1642691243175,0.69033155,43295.0,43293.0,0.18573431]
[1642691243371,0.69033155,43295.0,43293.0,0.24351031]
[1642691243372,0.69058638,43295.0,43293.0,0.24351031]
[1642691243674,0.69058638,43295.0,43292.0,0.11555]
[1642691243974,0.69058638,43295.0,43292.0,0.11494024]
[1642691244370,0.69033155,43295.0,43292.0,0.11494024]
[1642691244571,0.69033155,43295.0,43293.0,0.36128652]
[1642691244771,0.69033155,43295.0,43293.0,0.56151054]
[1642691245475,0.115562,43301.0,43293.0,0.56151054]
[1642691245476,0.232138,43316.0,43294.0,1.71062346]
[1642691245679,0.001,43316.0,43297.0,0.05777469]
[1642691245877,0.001,43314.0,43310.0,0.0012654]
[1642691246079,0.001,43316.0,43313.0,0.00123681]
[1642691246319,0.057734,43333.0,43315.0,0.00121506]
[1642691246520,0.36347169,43359.0,43331.0,0.85]
[1642691246715,0.41,43357.0,43333.0,0.00128031]
[1642691246912,0.38338453,43358.0,43333.0,0.00128031]
[1642691246913,0.17071664,43346.0,43333.0,0.00128031]
[1642691247136,0.00123107,43355.0,43333.0,0.41813831]
[1642691247415,0.115464,43352.0,43340.0,0.00126103]
[1642691247613,0.115464,43352.0,43351.0,0.00126137]
[1642691247614,0.03275768,43352.0,43351.0,0.00126137]
[1642691247812,0.03275768,43352.0,43342.0,0.0425]
[1642691247813,0.13729076,43349.0,43342.0,0.0425]
[1642691248113,0.00092826,43348.0,43345.0,0.00024365]
[1642691248311,0.00101902,43349.0,43344.0,0.23082978]
[1642691248512,0.002,43356.0,43344.0,0.23082978]
[1642691248513,0.002,43356.0,43344.0,1.693121]
[1642691248712,0.002,43356.0,43345.0,0.057712]
[1642691248910,0.00012034,43355.0,43345.0,0.47457]
[1642691249115,0.00012034,43355.0,43349.0,0.49031216]
[1642691249313,0.00010314,43354.0,43350.0,0.416858]
[1642691249518,0.00023202,43353.0,43350.0,0.416858]
[1642691249716,0.00440768,43359.0,43352.0,1.25]
[1642691249958,0.00440768,43359.0,43353.0,0.416858]
[1642691250156,0.001779,43360.0,43355.0,1.25]
[1642691250360,0.12553765,43366.0,43363.0,0.15056806]
[1642691250561,1.34336905,43369.0,43365.0,1.25]
[1642691250956,1.34336905,43369.0,43366.0,0.416858]
[1642691251157,1.34336905,43369.0,43365.0,1.23797552]
[1642691251360,1.34336905,43369.0,43365.0,1.29565287]
[1642691251361,1.33836905,43369.0,43365.0,1.29565287]
[1642691251959,1.33836905,43369.0,43366.0,0.05767]
[1642691252357,0.05039202,43381.0,43367.0,1.25]
[1642691252559,0.05039202,43381.0,43370.0,0.05766937]
[1642691252759,0.14847778,43389.0,43371.0,0.416858]
[1642691252959,0.05794286,43384.0,43372.0,0.04267]
[1642691253160,0.05794286,43384.0,43373.0,1.64546998]
[1642691253161,0.00027886,43384.0,43373.0,1.64546998]
[1642691253458,0.00027886,43384.0,43382.0,0.1709504]
[1642691253717,0.1,43388.0,43383.0,1.25]
[1642691253718,0.09547886,43388.0,43383.0,1.25]
[1642691254118,0.01005351,43389.0,43384.0,0.95]
[1642691254321,0.03425131,43391.0,43386.0,1.25]
[1642691254519,0.16599898,43392.0,43386.0,0.05765022]
[1642691254721,0.16099782,43380.0,43374.0,0.04252058]
[1642691254921,0.057674,43386.0,43374.0,0.04252058]
[1642691255119,0.057674,43386.0,43372.0,0.9742]
[1642691255120,0.057674,43386.0,43375.0,0.00020628]
[1642691255320,0.23841863,43381.0,43375.0,0.00020628]
[1642691255521,0.23841863,43381.0,43373.0,0.00024066]
[1642691255522,0.29718272,43377.0,43373.0,0.00024066]
[1642691255720,0.05,43376.0,43373.0,0.00024066]
[1642691255918,0.095,43376.0,43373.0,0.00024066]
[1642691256220,0.15864018,43376.0,43373.0,0.00024066]
[1642691256419,0.16164018,43376.0,43372.0,0.97382919]
[1642691256619,0.23059025,43374.0,43372.0,0.97382919]
[1642691256825,0.00596318,43381.0,43374.0,0.22413399]
[1642691257019,0.1,43384.0,43373.0,0.70006876]
[1642691257219,0.1,43384.0,43374.0,0.416858]
[1642691257462,0.05197699,43376.0,43374.0,0.79660877]
[1642691257864,0.04355459,43375.0,43374.0,0.33507577]
[1642691258060,0.2471924,43375.0,43374.0,0.33507577]
[1642691258361,0.85,43374.0,43372.0,0.87488554]
[1642691258562,0.45,43374.0,43372.0,0.002]
[1642691258763,1.609358,43373.0,43372.0,0.002]
[1642691258959,0.55,43371.0,43360.0,0.90830518]
[1642691259160,0.22251834,43361.0,43360.0,0.90830518]
[1642691259365,0.40423576,43361.0,43355.0,0.0002]
[1642691259562,0.0999,43357.0,43355.0,0.0002]
[1642691259764,0.0999,43357.0,43356.0,0.00029223]
[1642691259960,0.1924,43357.0,43355.0,0.0002]
[1642691260360,0.307838,43357.0,43355.0,0.0002]
[1642691260562,0.311938,43357.0,43355.0,0.0012]
[1642691260961,0.161938,43357.0,43355.0,0.0012]
[1642691261210,0.05,43357.0,43356.0,0.24948806]
[1642691261418,0.0425,43357.0,43355.0,0.0012]
[1642691261813,0.0425,43357.0,43355.0,0.0002]
[1642691262016,1.25,43355.0,43350.0,0.0002]
[1642691262215,0.0425,43354.0,43350.0,0.0002]
[1642691262416,0.0425,43353.0,43351.0,8.596e-05]
[1642691262717,0.0425,43352.0,43343.0,0.416858]
[1642691262913,0.0425,43351.0,43338.0,0.416858]
[1642691263117,0.0425,43351.0,43344.0,0.16364919]
[1642691263312,0.100223,43351.0,43344.0,0.00012033]
[1642691263516,0.149573,43351.0,43334.0,0.79186135]
[1642691263720,0.25009839,43342.0,43334.0,0.79186135]
[1642691264015,0.0999,43336.0,43323.0,0.057745]
[1642691264216,0.0999,43336.0,43329.0,1.45084139]
[1642691264217,0.057543,43334.0,43329.0,1.45084139]
[1642691264414,0.057543,43334.0,43333.0,0.3103588]
[1642691264815,0.03622314,43344.0,43334.0,1.25]
[1642691265058,0.00363436,43340.0,43334.0,1.86836232]
[1642691265259,0.00363436,43340.0,43335.0,0.00010314]
[1642691265460,0.09119103,43342.0,43337.0,1.25]
[1642691265665,0.0999,43348.0,43338.0,2.05473]
[1642691265666,0.00122666,43348.0,43338.0,2.05473]
[1642691265860,0.00128644,43358.0,43355.0,0.38100099]
[1642691266060,0.0012301,43362.0,43356.0,0.19032669]
[1642691266259,0.0012737,43370.0,43356.0,0.42435314]
[1642691266461,0.115407,43360.0,43356.0,0.29873045]
[1642691266658,0.115407,43360.0,43356.0,0.40209614]
[1642691266659,0.25392327,43360.0,43356.0,0.40209614]
[1642691266860,0.00030943,43359.0,43357.0,0.1]
[1642691267060,0.10020943,43359.0,43357.0,0.1]
[1642691267264,0.00029224,43358.0,43357.0,0.1]
[1642691267460,0.11539,43365.0,43361.0,0.057692]
[1642691267662,0.13844587,43382.0,43362.0,0.951105]
[1642691267862,0.0001719,43368.0,43367.0,0.14938951]
[1642691268062,0.43205397,43404.0,43369.0,0.05767635]
[1642691268260,0.00125656,43404.0,43376.0,0.057666]
[1642691268460,0.00022347,43381.0,43377.0,0.0425]
[1642691268707,0.00609746,43391.0,43378.0,1.25]
[1642691268910,0.0999,43379.0,43378.0,0.416858]
[1642691269107,0.1998,43379.0,43378.0,0.0425]
[1642691269308,0.2008,43379.0,43378.0,0.0425]
[1642691269511,0.2008,43379.0,43378.0,0.459358]
[1642691269813,0.1009,43379.0,43378.0,0.0425]
[1642691270209,0.158578,43379.0,43378.0,0.0425]
[1642691270410,0.1009,43379.0,43378.0,0.0425]
[1642691270609,0.1019,43379.0,43378.0,0.0475]
[1642691270813,0.1019,43379.0,43378.0,0.9975]
[1642691271212,0.1019,43379.0,43378.0,1.26458834]
[1642691271412,0.001,43379.0,43378.0,1.25897987]
[1642691271611,0.001,43380.0,43378.0,0.94939153]
[1642691272010,0.001,43380.0,43379.0,0.30860839]
[1642691272211,0.001,43380.0,43378.0,1.06472892]
[1642691272212,0.00018346,43381.0,43378.0,1.05972892]
[1642691272461,0.00018346,43381.0,43380.0,0.057674]
[1642691272760,0.231999,43380.0,43379.0,1.22401318]
[1642691272959,0.331899,43380.0,43379.0,0.30431285]
[1642691273159,0.331899,43380.0,43378.0,0.173023]
[1642691273362,0.331899,43380.0,43376.0,0.115349]
[1642691273561,0.331899,43380.0,43375.0,0.42]
[1642691273562,0.231999,43380.0,43375.0,0.42]
[1642691273761,0.231999,43380.0,43377.0,6.876e-05]
[1642691273961,0.231999,43380.0,43376.0,0.05776695]
[1642691273962,0.229999,43380.0,43376.0,0.05776695]
[1642691274159,0.0978,43379.0,43377.0,6.876e-05]
[1642691274560,0.0978,43379.0,43376.0,0.05915847]
[1642691274860,0.0978,43379.0,43377.0,6.876e-05]
[1642691275061,0.23318245,43380.0,43377.0,6.876e-05]
[1642691275259,0.0978,43379.0,43377.0,6.876e-05]
[1642691275665,0.1478,43379.0,43377.0,6.876e-05]
[1642691276219,1.47775458,43377.0,43376.0,0.002]
[1642691276415,1.48925779,43377.0,43376.0,0.002]
[1642691276616,0.010217,43373.0,43362.0,0.057703]
[1642691276817,0.18901296,43366.0,43360.0,0.1154]
[1642691277018,0.057707,43367.0,43360.0,0.1054]
[1642691277215,0.0978,43362.0,43360.0,0.1054]
[1642691277623,0.0425,43368.0,43364.0,0.20792185]
[1642691277818,0.0425,43368.0,43365.0,0.1733802]
[1642691278018,0.155499,43366.0,43365.0,0.17358648]
[1642691278220,0.03018295,43366.0,43360.0,0.078491]
[1642691278420,0.03018295,43366.0,43361.0,0.35354192]
[1642691278619,0.02992695,43366.0,43361.0,0.00027504]
[1642691278819,0.00127751,43371.0,43363.0,1.25]
[1642691279024,0.10338431,43375.0,43363.0,1.25]
[1642691279025,0.00348431,43375.0,43366.0,0.115367]
[1642691279221,0.13845649,43379.0,43374.0,0.33777679]
[1642691279420,0.057681,43376.0,43367.0,0.35371382]
[1642691279620,0.057681,43376.0,43367.0,0.32227065]
[1642691279823,0.45340787,43389.0,43380.0,0.19182706]
[1642691280069,0.0012,43381.0,43380.0,0.19182706]
[1642691280275,0.0012,43381.0,43375.0,0.24311221]
[1642691280276,0.097891,43381.0,43375.0,0.24311221]
[1642691280471,0.057682,43380.0,43375.0,0.24311221]
[1642691280671,0.09998628,43389.0,43381.0,1.0]
[1642691280872,0.09998628,43389.0,43381.0,1.42356316]
[1642691281074,0.00010314,43388.0,43382.0,0.17301594]
[1642691281273,0.00443091,43393.0,43387.0,0.00125424]
[1642691281470,0.00443091,43393.0,43392.0,0.00128971]
[1642691281672,0.057657,43395.0,43392.0,0.00128971]
[1642691281868,0.057657,43395.0,43386.0,0.35354192]
[1642691282068,0.05276014,43395.0,43391.0,0.057657]
[1642691282270,0.68158607,43399.0,43391.0,0.057657]
[1642691282468,0.5002,43399.0,43390.0,0.172971]
[1642691282670,0.287657,43395.0,43390.0,0.52651292]
[1642691282872,0.287657,43395.0,43390.0,0.172971]
[1642691283067,0.287657,43395.0,43390.0,0.52651292]
[1642691283270,0.287657,43395.0,43392.0,0.11532316]
[1642691283471,0.287657,43395.0,43393.0,0.1583071]
[1642691283718,0.23,43395.0,43393.0,0.1583071]
[1642691283913,6.876e-05,43398.0,43394.0,0.9]
[1642691284113,6.876e-05,43398.0,43393.0,0.057656]
[1642691284313,6.876e-05,43398.0,43394.0,0.0576533]
[1642691284512,0.40026876,43399.0,43395.0,0.057654]
[1642691284714,0.40026876,43399.0,43392.0,0.11532316]
[1642691284715,0.45026876,43399.0,43392.0,0.11532316]
[1642691284914,0.173018,43397.0,43393.0,1.0]
[1642691285114,0.223018,43397.0,43393.0,1.00008595]
[1642691285315,0.173018,43397.0,43393.0,0.99006876]
[1642691285618,1.07340928,43394.0,43393.0,0.52868676]
[1642691285814,0.23159128,43394.0,43393.0,0.52868676]
[1642691286113,0.23159128,43394.0,43393.0,0.06727876]
[1642691286114,0.87340928,43394.0,43393.0,0.06727876]
[1642691286314,0.88159128,43394.0,43393.0,0.06727876]
[1642691286514,1.12782779,43394.0,43393.0,0.06727876]
[1642691286718,1.25,43393.0,43382.0,0.0002]
[1642691287018,1.43994732,43383.0,43382.0,0.0002]
[1642691287216,1.258182,43382.0,43381.0,0.038653]
[1642691287467,0.24967958,43380.0,43372.0,0.9999]
[1642691287670,0.057698,43379.0,43372.0,1.205691]
[1642691287866,0.057698,43379.0,43373.0,0.00036099]
[1642691288064,0.057698,43379.0,43374.0,0.11536988]
[1642691288269,0.057698,43379.0,43374.0,0.05768788]
[1642691288467,0.0425,43378.0,43375.0,0.00032661]
[1642691288770,0.17690238,43377.0,43375.0,0.00032661]
[1642691288968,0.057693,43375.0,43372.0,0.11537706]
[1642691289167,0.008182,43373.0,43372.0,0.11537706]
[1642691289368,0.006172,43373.0,43365.0,0.057696]
[1642691289566,1.1425,43376.0,43365.0,0.057696]
[1642691289767,0.006179,43375.0,43368.0,0.1153859]
[1642691289968,0.057687,43374.0,43370.0,0.057686]
[1642691290167,0.057687,43374.0,43370.0,0.205796]
[1642691290371,0.00345354,43379.0,43371.0,0.35361068]
[1642691290770,0.00345354,43379.0,43371.0,0.61217685]
[1642691290968,0.00345354,43379.0,43371.0,0.41129452]
[1642691291209,0.05768,43378.0,43372.0,0.115355]
[1642691291513,0.00010314,43381.0,43375.0,0.14809]
[1642691291706,0.00010314,43381.0,43376.0,0.9191]
[1642691291906,0.00345383,43384.0,43376.0,0.9191]
[1642691291907,0.0999,43378.0,43376.0,0.9191]
[1642691292109,8.595e-05,43380.0,43377.0,0.05767798]
[1642691292309,0.00345383,43384.0,43377.0,0.05767798]
[1642691292310,0.00013752,43383.0,43377.0,0.05767798]
[1642691292507,0.05473676,43382.0,43379.0,0.057678]
[1642691292706,0.05373676,43382.0,43379.0,0.115356]
[1642691293105,0.05373676,43382.0,43380.0,0.34222452]
[1642691293106,0.23273676,43382.0,43380.0,0.34222452]
[1642691293312,0.23173676,43382.0,43380.0,0.34222452]
[1642691293508,0.23073676,43382.0,43379.0,0.11535709]
[1642691293710,0.65073676,43382.0,43379.0,0.11535709]
[1642691293910,0.64973676,43382.0,43379.0,0.05767909]
[1642691294108,0.64973676,43382.0,43378.0,0.23071446]
[1642691294109,0.6491399,43382.0,43378.0,0.23071446]
[1642691294409,0.4681399,43382.0,43379.0,0.05]
[1642691294612,0.4681399,43382.0,43379.0,0.10767917]
[1642691294809,0.4681399,43382.0,43379.0,0.56525969]
[1642691294810,0.4671399,43382.0,43379.0,0.56525969]
[1642691295065,0.4661399,43382.0,43380.0,0.34222452]
[1642691295267,0.4651399,43382.0,43380.0,0.45756752]
[1642691295467,0.4651399,43382.0,43381.0,0.65]
[1642691295666,0.4641399,43382.0,43381.0,0.81948705]
[1642691295868,0.42040314,43382.0,43381.0,0.81948705]
[1642691296068,0.41940314,43382.0,43381.0,0.65]
[1642691296264,0.41940314,43382.0,43380.0,0.115343]
[1642691296668,0.41739414,43382.0,43380.0,0.12456385]
[1642691296967,0.51729414,43382.0,43380.0,0.12456385]
[1642691297166,0.51729414,43382.0,43381.0,0.19982201]
[1642691297368,0.57496914,43382.0,43381.0,0.19982201]
[1642691297566,0.57496914,43382.0,43381.0,0.59982201]
[1642691297768,0.57496914,43382.0,43381.0,0.19982201]
[1642691297966,0.57496914,43382.0,43380.0,0.00922085]
[1642691298470,0.57496914,43382.0,43380.0,0.00767535]
[1642691298908,0.57496914,43382.0,43380.0,0.18506403]
[1642691299308,0.57496914,43382.0,43380.0,0.24273503]
[1642691299608,0.57296014,43382.0,43380.0,0.06534635]
[1642691299810,0.57286014,43382.0,43380.0,0.06534635]
[1642691300009,0.57276014,43382.0,43380.0,0.00767535]
[1642691300212,0.57276014,43382.0,43380.0,0.06534635]
[1642691300411,0.41498514,43382.0,43380.0,0.06534635]
[1642691300609,0.23695475,43382.0,43381.0,0.98669496]
[1642691301012,0.23695475,43382.0,43381.0,0.18669496]
[1642691301013,0.23685475,43382.0,43381.0,0.18669496]
[1642691301212,0.23685475,43382.0,43381.0,0.3]
[1642691301213,0.23665475,43382.0,43381.0,0.3]
[1642691301409,0.23655475,43382.0,43381.0,0.3]
[1642691301710,0.29402875,43382.0,43380.0,0.00767535]
[1642691302011,0.29392875,43382.0,43380.0,0.00767535]
[1642691302309,0.29382875,43382.0,43380.0,0.00267535]
[1642691302556,0.29181975,43382.0,43379.0,0.24843452]
[1642691303157,0.29181975,43382.0,43379.0,0.19075535]
[1642691303357,0.0999,43381.0,43379.0,0.19075535]
[1642691303958,0.0999,43381.0,43379.0,0.18575535]
[1642691304360,0.0999,43381.0,43379.0,0.41646162]
[1642691304559,0.0999,43381.0,43379.0,0.30110934]
[1642691304760,0.0999,43381.0,43379.0,0.18575535]
[1642691304959,0.0999,43381.0,43379.0,0.05]
[1642691305360,0.0999,43381.0,43379.0,0.045]
[1642691305560,0.097891,43381.0,43379.0,0.045]
[1642691306911,0.29181975,43382.0,43379.0,0.045]
[1642691307113,0.0978,43380.0,43379.0,0.045]
[1642691307812,0.0978,43380.0,43379.0,0.035]
[1642691310561,0.33459499,43380.0,43379.0,0.035]
[1642691310761,0.24179499,43380.0,43379.0,0.035]
[1642691311165,0.24179499,43380.0,43376.0,0.9191]
[1642691311166,0.715389,43379.0,43376.0,0.9191]
[1642691311465,0.1352,43378.0,43376.0,0.9191]